bitfinex/quotes_ETHUSD_20250807
["timestamp","ask_amount","ask_price","bid_price","bid_amount"]
[1754583058058,4.76596522,3832.6,3832.5,3.04116288]
[1754583058262,4.76596522,3832.6,3832.5,3.53836288]
[1754583059687,4.76496522,3832.6,3832.5,3.53836288]
[1754583060200,0.55296522,3832.6,3832.5,3.53836288]
[1754583060399,4.3374,3833.4,3832.6,3.0]
[1754583060585,4.207,3833.3,3833.2,2.60878639]
[1754583061294,4.207,3833.3,3833.2,3.03778639]
[1754583061836,14.5,3834.2,3834.1,2.60817401]
[1754583061961,18.9470284,3834.2,3834.1,2.60817401]
[1754583062165,19.0774284,3834.2,3834.1,3.53437401]
[1754583062366,19.0774284,3834.2,3834.1,2.60817401]
[1754583062607,19.0774284,3834.2,3833.4,0.429]
[1754583062930,0.6804,3834.0,3833.5,2.60856032]
[1754583063067,0.55,3833.8,3833.4,2.60864849]
[1754583063262,0.1304,3833.6,3833.0,0.1304]
[1754583063495,4.203,3833.5,3833.4,2.60863986]
[1754583063805,4.203,3833.5,3832.7,3.03806073]
[1754583063806,0.1304,3833.4,3832.9,0.1304]
[1754583064097,4.203,3833.3,3833.0,2.6088982]
[1754583064305,4.203,3833.3,3832.7,2.60912672]
[1754583064306,1.41684245,3833.2,3832.7,2.60912672]
[1754583064463,0.55,3833.0,3832.7,2.60910843]
[1754583064666,0.1304,3832.8,3832.7,2.60910843]
[1754583065013,0.55,3833.5,3833.2,2.60876386]
[1754583065179,0.1304,3833.3,3833.2,2.60876386]
[1754583065365,18.8314,3833.3,3833.2,3.03776386]
[1754583065610,4.3314,3833.3,3832.7,1.38123675]
[1754583065803,4.3314,3833.3,3832.7,0.5594]
[1754583066228,4.3314,3833.3,3833.0,2.60891061]
[1754583066439,4.3314,3833.3,3833.1,2.60884642]
[1754583066643,0.4949,3833.2,3833.0,2.60891911]
[1754583066842,0.4949,3833.2,3832.8,2.60905865]
[1754583067343,0.4949,3833.2,3832.6,2.73953114]
[1754583067344,0.73694221,3833.2,3832.6,3.1304]
[1754583067553,0.1304,3833.0,3832.8,2.60901108]
[1754583067852,4.199,3832.9,3832.5,0.1304]
[1754583068052,4.199,3832.9,3832.8,2.60905865]
[1754583069548,4.199,3832.9,3832.8,3.53525865]
[1754583070044,4.199,3832.9,3832.8,3.03805865]
[1754583070247,4.199,3832.9,3832.8,0.429]
[1754583070551,4.199,3832.9,3832.8,2.60905865]
[1754583070852,4.199,3832.9,3832.5,0.1304]
[1754583071036,0.24281214,3832.8,3832.2,0.429]
[1754583071238,0.24317054,3832.7,3832.6,2.60917355]
[1754583071750,14.74317054,3832.7,3832.6,2.60917355]
[1754583072347,19.49502473,3832.7,3832.6,3.2220412]
[1754583072648,4.99502473,3832.7,3832.6,3.2220412]
[1754583072949,4.99502473,3832.7,3832.6,2.2958412]
[1754583073159,4.99502473,3832.7,3832.5,2.73960474]
[1754583073373,1.32059613,3832.6,3832.1,0.001]
[1754583073677,0.80602473,3832.5,3832.1,0.001]
[1754583073875,15.30610881,3832.4,3832.3,2.60937672]
[1754583074029,15.30610881,3832.4,3832.1,0.001]
[1754583074371,0.80610881,3832.3,3832.1,0.001]
[1754583074564,5.02010881,3832.2,3832.1,2.61049283]
[1754583074944,19.52010881,3832.2,3832.1,2.61049283]
[1754583075263,15.30610881,3832.2,3832.1,2.61049283]
[1754583075567,19.51910881,3832.2,3832.1,3.03949283]
[1754583075858,5.01610881,3832.2,3832.1,7.15132789]
[1754583076059,0.80610881,3832.2,3832.1,7.15132789]
[1754583076758,0.80610881,3832.2,3832.1,5.61049283]
[1754583077064,0.80610881,3832.2,3832.1,6.53669283]
[1754583077262,0.80610881,3832.2,3832.1,5.61049283]
[1754583077927,0.80610881,3832.2,3832.1,6.03949283]
[1754583078130,0.80610881,3832.2,3832.1,5.61049283]
[1754583078434,1.30129324,3832.2,3832.1,2.61049283]
[1754583078775,2.84912256,3832.2,3832.1,0.001]
[1754583078956,2.86879396,3832.2,3832.1,0.001]
[1754583079129,2.84912256,3832.2,3832.1,0.001]
[1754583079327,0.55,3832.1,3831.7,2.61076311]
[1754583079577,0.55,3831.9,3831.7,0.001]
[1754583079734,1.35639324,3831.8,3831.7,0.001]
[1754583079930,2.29789324,3831.8,3831.7,0.001]
[1754583081232,4.66044298,3831.8,3831.7,0.001]
[1754583082296,4.21384298,3831.8,3831.7,2.61080765]
[1754583082508,4.21384298,3831.8,3831.7,0.001]
[1754583082703,4.21384298,3831.8,3831.7,2.61080765]
[1754583082704,8.42684298,3831.8,3831.7,2.61080765]
[1754583083000,6.06429324,3831.8,3831.7,2.61080765]
[1754583083616,20.69469324,3831.8,3831.7,2.61080765]
[1754583083812,20.69469324,3831.8,3831.7,0.001]
[1754583084015,20.01129324,3831.8,3831.7,2.61080765]
[1754583084204,5.01593034,3831.8,3831.7,3.53700765]
[1754583084398,5.01593034,3831.8,3831.7,4.15169456]
[1754583084599,0.80593034,3831.8,3831.7,7.28209456]
[1754583084789,1e-08,3831.8,3831.7,20.32772926]
[1754583085926,0.12156,3833.0,3832.9,2.60899058]
[1754583086232,4.45996,3833.0,3832.9,2.60899058]
[1754583086892,4.45996,3833.0,3832.5,0.1304]
[1754583087097,0.4949,3832.9,3831.7,0.001]
[1754583087299,0.55,3832.8,3832.7,2.60910126]
[1754583087610,4.32956,3833.0,3832.2,3.03846714]
[1754583087805,0.12156,3833.0,3832.9,2.60899058]
[1754583088023,4.33756,3833.0,3832.9,2.60899058]
[1754583088836,4.33756,3833.0,3832.8,2.60903998]
[1754583089129,4.79486,3833.0,3832.8,2.6090413]
[1754583089831,4.79486,3833.0,3832.9,2.60899058]
[1754583090417,4.79486,3833.0,3832.8,2.60904022]
[1754583090611,0.4573,3832.9,3832.8,2.60904022]
[1754583091009,0.4573,3832.9,3832.7,2.60910944]
[1754583091209,0.4573,3832.9,3832.8,2.60905865]
[1754583091714,14.9573,3832.9,3832.8,2.60905865]
[1754583092137,0.12156,3833.0,3832.9,2.60899058]
[1754583092354,0.12156,3833.0,3832.9,14.668679]
[1754583092651,1e-08,3833.0,3832.9,18.159579]
[1754583093037,1e-08,3833.0,3832.9,7.34031428]
[1754583093543,1e-08,3833.0,3832.9,5.60899058]
[1754583093836,1e-08,3833.0,3832.9,2.60899058]
[1754583094041,0.45730001,3833.0,3832.9,2.60899058]
[1754583094538,4.20500001,3833.0,3832.9,2.60899058]
[1754583094839,4.66230001,3833.0,3832.9,2.60899058]
[1754583096946,4.20500001,3833.0,3832.9,2.60899058]
[1754583097442,4.33540001,3833.0,3832.9,2.60899058]
[1754583097826,4.5791947,3833.0,3832.9,2.60899058]
[1754583098402,19.0791947,3833.0,3832.9,2.60899058]
[1754583098603,4.5791947,3833.0,3832.9,2.60899058]
[1754583098802,4.5791947,3833.0,3832.9,7.0793955]
[1754583098803,0.2437947,3833.0,3832.9,7.0793955]
[1754583099041,1e-08,3833.0,3832.9,7.2097955]
[1754583101043,1e-08,3833.0,3832.9,6.7188955]
[1754583101433,1e-08,3833.0,3832.9,7.2097955]
[1754583101875,1e-08,3833.0,3832.9,6.7188955]
[1754583102372,1e-08,3833.0,3832.9,5.73939058]
[1754583102878,1e-08,3833.0,3832.9,6.68799058]
[1754583104744,4.187,3833.4,3833.3,2.60871833]
[1754583105377,4.187,3833.4,3833.3,2.73911833]
[1754583105532,4.187,3833.4,3833.3,3.19681833]
[1754583106578,4.187,3833.4,3833.3,6.19681833]
[1754583106778,4.187,3833.4,3833.3,5.73911833]
[1754583107185,4.6443,3833.4,3833.3,5.73911833]
[1754583109687,5.0979,3833.4,3833.3,5.60871833]
[1754583109900,4.187,3833.4,3833.3,5.60871833]
[1754583110505,4.6443,3833.4,3833.3,5.60871833]
[1754583110716,5.0979,3833.4,3833.3,5.60871833]
[1754583112068,4.187,3833.4,3833.3,5.60871833]
[1754583112791,0.002,3833.4,3833.3,5.60871833]
[1754583113101,4.171,3833.4,3833.3,8.86257663]
[1754583113588,4.171,3833.4,3833.3,8.37167663]
[1754583113988,4.171,3833.4,3833.3,6.19681833]
[1754583115492,4.171,3833.4,3833.3,5.73911833]
[1754583119197,4.171,3833.4,3833.3,6.18571833]
[1754583120161,1e-08,3833.4,3833.3,6.67601833]
[1754583120605,1e-08,3833.4,3833.3,9.32431663]
[1754583121404,0.002,3833.8,3833.3,9.32431663]
[1754583121405,1e-08,3833.8,3833.3,9.32431663]
[1754583121562,1e-08,3833.8,3833.7,15.64861346]
[1754583121758,1e-08,3833.8,3833.7,19.80261346]
[1754583121965,1e-08,3833.8,3833.7,20.86991346]
[1754583122164,1e-08,3833.8,3833.7,19.39979274]
[1754583122409,1e-08,3833.8,3833.7,5.42272542]
[1754583122561,1e-08,3833.8,3833.7,10.51162542]
[1754583122765,1e-08,3833.8,3833.7,10.02132542]
[1754583122969,1e-08,3833.8,3833.7,2.73884614]
[1754583123167,0.47510001,3833.8,3833.7,2.73884614]
[1754583123363,0.47510001,3833.8,3833.7,5.60844614]
[1754583123364,0.93950001,3833.8,3833.7,5.60844614]
[1754583125783,1e-08,3833.8,3833.7,5.60844614]
[1754583126179,0.47510001,3833.8,3833.7,5.60844614]
[1754583126382,0.93950001,3833.8,3833.7,5.60844614]
[1754583126582,0.47510001,3833.8,3833.7,5.60844614]
[1754583126771,0.93950001,3833.8,3833.7,5.60844614]
[1754583127709,0.47510001,3833.8,3833.7,5.60844525]
[1754583128599,0.93950001,3833.8,3833.7,5.60844525]
[1754583129275,0.47510001,3833.8,3833.7,5.60844525]
[1754583129490,0.1304,3833.9,3833.8,5.60837811]
[1754583129491,1e-08,3833.9,3833.8,5.60837811]
[1754583129833,0.002,3835.0,3834.5,5.60790194]
[1754583130416,0.4771,3834.6,3834.5,5.60790194]
[1754583130838,0.9415,3834.6,3834.5,5.60790194]
[1754583131292,0.9415,3834.6,3834.5,2.60790194]
[1754583132046,0.55,3834.5,3834.0,2.60819273]
[1754583132201,1.4895,3834.5,3833.9,2.60828725]
[1754583132405,1.4895,3834.5,3833.1,2.60885445]
[1754583132406,0.55,3834.3,3833.1,2.60885445]
[1754583132606,0.55,3834.1,3833.5,2.60851718]
[1754583132805,0.9395,3834.0,3833.0,2.60987635]
[1754583133116,0.55,3833.8,3833.7,2.60842604]
[1754583133325,0.4751,3833.8,3833.7,2.60842604]
[1754583133888,2.78965068,3834.1,3834.0,2.60824204]
[1754583134110,5.43316528,3834.1,3834.0,2.60824204]
[1754583134312,0.80606528,3834.1,3834.0,2.60824204]
[1754583134634,0.24403225,3834.3,3834.2,2.60810599]
[1754583134837,0.71911508,3834.4,3834.3,2.60803797]
[1754583134991,0.4751,3834.4,3834.3,2.60803797]
[1754583135189,4.6281,3834.4,3834.3,2.60803797]
[1754583135931,0.56401485,3834.6,3834.5,2.60790194]
[1754583136136,0.002,3834.6,3834.5,2.60790194]
[1754583136637,0.4771,3834.6,3834.5,2.60790194]
[1754583137340,1e-08,3834.6,3834.5,2.60790194]
[1754583137493,1e-08,3834.6,3834.5,6.12948913]
[1754583138026,1e-08,3834.6,3834.5,5.60790194]
[1754583140122,1e-08,3834.6,3834.5,5.73830194]
[1754583140725,1e-08,3835.0,3834.9,5.60762992]
[1754583140948,1e-08,3835.0,3834.9,6.42917088]
[1754583141113,1e-08,3835.0,3834.9,6.55957088]
[1754583141315,1e-08,3835.0,3834.9,7.04987088]
[1754583142631,1e-08,3835.0,3834.9,7.49647088]
[1754583143830,1e-08,3835.0,3834.9,5.73802992]
[1754583144032,0.47510001,3835.0,3834.9,5.60762992]
[1754583144234,0.47510001,3835.0,3834.9,2.60762992]
[1754583144857,5.08950001,3835.0,3834.9,2.60762992]
[1754583145850,4.15000001,3835.0,3834.9,2.60762992]
[1754583146648,1e-08,3835.0,3834.9,2.60762992]
[1754583146874,4.14900001,3835.0,3834.9,4.19907185]
[1754583147038,4.14900001,3835.0,3834.9,3.75247185]
[1754583147234,1e-08,3835.0,3834.9,3.75247185]
[1754583147650,1e-08,3835.0,3834.9,4.19907185]
[1754583147851,1e-08,3835.0,3834.9,4.22514814]
[1754583148381,1e-08,3835.0,3834.9,11.34507185]
[1754583151182,1e-08,3835.0,3834.9,11.54408879]
[1754583154997,1e-08,3835.4,3835.3,2.60735796]
[1754583155162,1e-08,3835.4,3835.3,20.73341727]
[1754583155357,1e-08,3835.4,3835.3,21.69601727]
[1754583156246,1e-08,3835.4,3835.3,16.59941727]
[1754583156442,1e-08,3835.4,3835.3,20.72941727]
[1754583157226,1e-08,3835.4,3835.3,16.59941727]
[1754583157529,0.92210001,3835.4,3835.3,5.73775796]
[1754583159412,1e-08,3835.4,3835.3,5.73775796]
[1754583159617,1e-08,3835.4,3835.3,18.77792528]
[1754583160050,1e-08,3835.4,3835.3,5.73775796]
[1754583161640,0.92210001,3835.4,3835.3,9.85875796]
[1754583162047,0.92210001,3835.4,3835.3,5.73775796]
[1754583162442,0.46450001,3835.4,3835.3,5.73775796]
[1754583162622,1e-08,3835.4,3835.3,5.73775796]
[1754583163244,1e-08,3835.4,3835.3,23.63684945]
[1754583164346,1e-08,3835.4,3835.3,22.89592528]
[1754583164719,1e-08,3835.4,3835.3,5.73775796]
[1754583167662,0.92210001,3835.4,3835.3,5.73775796]
[1754583168424,1e-08,3835.4,3835.3,5.73775796]
[1754583168628,1e-08,3835.4,3835.3,10.00775796]
[1754583171140,0.92210001,3835.4,3835.3,10.00775796]
[1754583171930,0.46450001,3835.4,3835.3,10.00775796]
[1754583172270,0.92210001,3835.4,3835.3,10.00775796]
[1754583172469,0.46450001,3835.4,3835.3,10.00775796]
[1754583172772,1e-08,3835.4,3835.3,10.00775796]
[1754583173766,0.46450001,3835.4,3835.3,10.00775796]
[1754583174473,0.46450001,3835.4,3835.3,5.73775796]
[1754583175904,0.92210001,3835.4,3835.3,2.73775796]
[1754583176984,0.92210001,3835.4,3835.3,2.60735796]
[1754583177344,1.29685087,3835.4,3835.2,4.27]
[1754583177542,0.13040001,3835.4,3835.3,2.60735796]
[1754583177781,0.69339913,3835.4,3835.3,2.60735796]
[1754583177988,0.93775246,3835.4,3835.3,2.60735796]
[1754583178168,0.55,3835.3,3835.2,4.27]
[1754583178373,1.6008477,3835.3,3835.2,6.87742594]
[1754583178577,17.0480477,3835.3,3834.9,0.001]
[1754583178750,0.1304,3835.1,3834.9,0.001]
[1754583179152,0.1304,3835.1,3835.0,2.60756192]
[1754583179481,0.69324716,3835.1,3835.0,2.60756192]
[1754583179683,15.19324716,3835.1,3835.0,2.60756192]
[1754583179860,16.14044716,3835.1,3835.0,2.60756192]
[1754583180664,16.38468476,3835.1,3835.0,2.60756192]
[1754583181099,18.07815324,3835.1,3834.9,0.001]
[1754583181299,6.39928476,3835.0,3834.9,0.001]
[1754583181809,5.45208476,3835.0,3834.9,0.001]
[1754583181981,6.39928476,3835.0,3834.9,0.001]
[1754583182178,0.80708476,3835.0,3834.9,2.60862992]
[1754583182586,0.2442376,3835.0,3834.9,3.09622992]
[1754583182985,0.3746376,3835.0,3834.9,3.09622992]
[1754583183303,0.2442376,3835.1,3835.0,2.60756192]
[1754583183511,0.3746376,3835.1,3835.0,2.60756192]
[1754583183674,0.8579376,3835.1,3835.0,2.60756192]
[1754583183862,0.3746376,3835.1,3835.0,2.60756192]
[1754583184063,0.2442376,3835.1,3835.0,2.60756192]
[1754583184409,0.56284716,3835.2,3835.1,2.60749393]
[1754583184611,0.8067219,3835.2,3835.1,2.60749393]
[1754583184914,0.24387474,3835.2,3835.1,2.60749393]
[1754583185616,4.33487474,3835.2,3835.1,13.37877666]
[1754583186046,4.33487474,3835.2,3835.1,12.89117666]
[1754583186698,4.33487474,3835.2,3835.1,3.09509393]
[1754583186898,4.33487474,3835.2,3835.1,2.60749393]
[1754583187332,4.33487474,3835.2,3835.1,3.09509393]
[1754583188141,14.50000001,3835.4,3835.3,2.60735796]
[1754583188313,19.39160474,3835.4,3835.3,2.60735796]
[1754583188511,4.32983764,3835.4,3835.3,3.09495796]
[1754583188834,0.24383764,3835.4,3835.3,4.64212086]
[1754583189032,1e-08,3835.4,3835.3,5.22512086]
[1754583189709,1e-08,3835.4,3835.3,4.77252086]
[1754583190319,1e-08,3835.4,3835.3,5.22512086]
[1754583193206,1e-08,3835.4,3835.3,8.22512086]
[1754583193610,1e-08,3835.4,3835.3,12.30512086]
[1754583195605,0.5963,3836.3,3835.3,12.30512086]
[1754583195606,0.002,3837.1,3836.5,5.60654242]
[1754583195836,0.002,3837.1,3836.6,5.60647448]
[1754583196155,1e-08,3836.7,3836.6,10.62767448]
[1754583196645,0.48330001,3836.7,3836.6,5.60647448]
[1754583196944,1e-08,3836.7,3836.6,5.60647448]
[1754583197964,1e-08,3836.7,3836.6,6.54667448]
[1754583198248,1e-08,3836.7,3836.6,8.39634444]
[1754583198452,1e-08,3836.7,3836.6,5.39634444]
[1754583198629,1e-08,3836.7,3836.6,4.94374444]
[1754583200165,0.94720001,3836.7,3836.6,2.60647448]
[1754583200663,1e-08,3836.7,3836.6,2.60647448]
[1754583202660,0.94720001,3836.7,3836.6,2.60647448]
[1754583202854,5.02120001,3836.7,3836.6,2.60647448]
[1754583203381,5.02120001,3836.7,3835.7,10.28368273]
[1754583203684,0.9472,3836.6,3835.6,3.68137518]
[1754583203980,0.9472,3836.5,3836.4,2.60655883]
[1754583204181,0.4833,3836.5,3836.4,2.60655883]
[1754583204582,5.02120001,3836.7,3836.6,2.60647448]
[1754583205438,5.02120001,3836.7,3836.3,2.60667249]
[1754583205640,1.0776,3836.6,3836.4,2.60661036]
[1754583205874,0.1304,3836.6,3836.5,2.60654242]
[1754583206081,1.0776,3836.6,3836.5,2.60654242]
[1754583206268,1.0776,3836.6,3836.4,2.60659435]
[1754583206467,0.9472,3836.5,3836.1,2.60676028]
[1754583206783,0.4833,3836.5,3836.4,2.60659407]
[1754583206963,0.1304,3836.6,3836.4,2.60659407]
[1754583207174,0.1304,3836.6,3836.2,2.60667848]
[1754583207175,0.55084,3836.6,3836.2,2.60667848]
[1754583207474,0.4639,3836.5,3836.0,0.1304]
[1754583207678,0.9472,3836.5,3836.3,2.60663002]
[1754583207881,0.4833,3836.5,3836.3,2.60663002]
[1754583208043,0.55084,3836.6,3835.9,2.60690338]
[1754583208044,0.55,3836.3,3835.9,2.60690338]
[1754583208243,0.1304,3836.1,3835.9,2.60695012]
[1754583208442,0.1304,3836.1,3836.0,2.60688216]
[1754583208688,0.1304,3836.1,3835.8,0.001]
[1754583208901,0.1304,3836.1,3836.0,2.60688216]
[1754583209047,15.5562,3836.1,3836.0,2.60688216]
[1754583209448,15.5562,3836.1,3835.9,2.60693272]
[1754583209766,0.9258,3836.0,3835.9,2.60693272]
[1754583209969,0.9258,3836.0,3835.8,0.001]
[1754583210146,0.9258,3835.9,3835.8,0.001]
[1754583210987,3.43822,3835.9,3835.8,0.001]
[1754583211137,3.56862,3835.9,3835.8,0.001]
[1754583213199,7.63362,3835.9,3835.8,0.001]
[1754583213394,10.24057012,3835.9,3835.8,0.001]
[1754583213583,7.63362,3835.9,3835.8,0.001]
[1754583213794,20.73153078,3835.9,3835.8,0.001]
[1754583214173,20.73160895,3835.9,3835.8,0.001]
[1754583214615,20.1712,3835.9,3835.8,0.001]
[1754583217581,20.7318704,3835.9,3835.8,0.001]
[1754583217780,19.7422,3835.9,3835.8,0.001]
[1754583218013,19.2454,3835.9,3835.8,2.60801809]
[1754583218620,18.6954,3835.9,3835.8,2.60801809]
[1754583218829,1e-08,3836.7,3835.8,14.50362213]
[1754583219119,1e-08,3836.7,3836.6,2.60647448]
[1754583219425,4.06300001,3836.7,3836.6,2.60647448]
[1754583219579,4.19340001,3836.7,3836.6,3.56807448]
[1754583220201,0.13040001,3836.7,3836.6,3.56807448]
[1754583220393,4.06300001,3836.7,3836.6,3.56807448]
[1754583221516,4.06200001,3836.7,3836.6,3.56807448]
[1754583221711,4.06200001,3836.7,3836.6,4.19857752]
[1754583222688,4.06200001,3836.7,3836.6,3.56807448]
[1754583224811,4.06200001,3836.7,3836.6,3.10037448]
[1754583225994,4.06200001,3836.7,3836.6,2.60647448]
[1754583226313,4.98780001,3836.7,3836.6,2.60647448]
[1754583226518,4.55880001,3836.7,3836.5,2.60649987]
[1754583226706,6.15422001,3836.7,3836.5,2.60649987]
[1754583226923,0.9258,3836.6,3836.5,2.60649987]
[1754583227498,0.9258,3836.6,3836.3,4.27]
[1754583227722,4.19240001,3836.7,3836.3,4.27]
[1754583227723,1.0562,3836.5,3836.3,4.27]
[1754583227897,0.1304,3836.5,3836.4,2.60656496]
[1754583228098,4.1924,3836.5,3836.4,2.60656496]
[1754583228527,5.1182,3836.5,3836.4,2.60661036]
[1754583230120,4.1924,3836.5,3836.4,2.60661036]
[1754583230332,18.6924,3836.5,3836.4,2.60661036]
[1754583232583,18.6924,3836.5,3836.4,3.10051036]
[1754583233025,18.6924,3836.5,3836.4,2.60661036]
[1754583233224,4.1924,3836.5,3836.4,2.60661036]
[1754583233392,4.062,3836.5,3836.4,2.60661036]
[1754583233791,4.062,3836.5,3836.4,3.10051036]
[1754583234103,1e-08,3836.7,3836.6,2.60647448]
[1754583234422,4.06200001,3836.7,3836.6,2.60647448]
[1754583234625,4.06200001,3836.7,3836.6,3.56807448]
[1754583235229,4.06200001,3836.7,3836.6,3.10037448]
[1754583238413,4.06200001,3836.7,3836.6,4.15191296]
[1754583240771,1e-08,3836.7,3836.6,6.68421296]
[1754583241063,1e-08,3836.7,3836.6,7.28231296]
[1754583242429,0.002,3837.5,3837.0,5.60620276]
[1754583242626,0.002,3837.5,3837.4,15.88247634]
[1754583242830,0.002,3837.5,3837.4,16.01287634]
[1754583243135,0.002,3837.5,3837.4,16.96267634]
[1754583244152,0.56097662,3838.3,3838.2,2.60538794]
[1754583244356,6.26,3838.9,3838.7,2.60504858]
[1754583244357,0.56097662,3838.8,3838.7,2.60504858]
[1754583244564,4.061,3839.5,3838.8,3.1304]
[1754583244742,2.60369885,3840.7,3839.2,2.60468064]
[1754583244743,4.5161,3839.4,3839.2,2.60468064]
[1754583245061,4.061,3839.4,3839.3,2.60464147]
[1754583248465,4.061,3839.4,3838.6,0.4821]
[1754583248466,4.9856,3839.4,3838.6,0.4821]
[1754583248765,0.9246,3839.3,3838.3,0.4821]
[1754583248969,0.55,3839.1,3838.2,0.26053879]
[1754583249264,0.55,3839.1,3838.0,3.55525972]
[1754583249265,4.9836,3839.0,3838.0,3.55525972]
[1754583249430,15.9746,3838.9,3838.1,3.0]
[1754583249769,0.9246,3838.8,3838.4,2.6052506]
[1754583249978,0.9246,3838.7,3837.8,3.0]
[1754583250186,4.059,3838.6,3837.9,1.0614554]
[1754583250390,4.059,3838.6,3837.9,4.0614554]
[1754583250552,4.059,3838.6,3837.4,2.60590567]
[1754583250553,0.9246,3838.5,3838.2,2.60537576]
[1754583250747,4.059,3838.6,3838.3,2.6053109]
[1754583250748,0.9246,3838.4,3838.3,2.6053109]
[1754583250952,0.9246,3838.4,3837.7,0.4821]
[1754583251251,0.4695,3838.3,3838.0,2.60549081]
[1754583251464,4.9836,3838.2,3837.6,2.60579084]
[1754583251787,4.5285,3838.1,3837.3,0.76845257]
[1754583251987,4.5285,3838.1,3837.9,2.60552851]
[1754583252194,4.059,3838.1,3838.0,2.60552371]
[1754583252780,4.5285,3838.1,3838.0,2.60552371]
[1754583252980,0.55,3838.6,3838.3,2.60526991]
[1754583253169,4.059,3838.5,3838.3,2.60526991]
[1754583253553,4.059,3838.5,3838.4,2.60525218]
[1754583254391,4.059,3838.5,3838.3,2.60530209]
[1754583254697,0.5999,3838.4,3838.3,2.60530209]
[1754583255553,0.1304,3838.4,3838.3,2.60530209]
[1754583255949,4.059,3838.5,3838.4,2.60525218]
[1754583256191,0.1304,3838.8,3838.7,2.60498504]
[1754583256784,4.059,3838.9,3838.8,2.60498072]
[1754583257084,0.1304,3838.9,3838.8,2.60498072]
[1754583257287,0.1304,3839.4,3838.9,2.60491286]
[1754583257451,4.059,3839.6,3839.2,2.60470931]
[1754583257654,4.059,3839.6,3839.5,2.60450579]
[1754583258066,4.9836,3839.6,3839.5,2.60450579]
[1754583258404,4.9836,3839.6,3839.2,2.60470931]
[1754583258555,4.5141,3839.6,3839.1,0.1304]
[1754583258755,4.5141,3839.6,3839.5,2.60450579]
[1754583259262,4.9836,3839.6,3839.5,2.60450579]
[1754583260880,5.54193716,3839.6,3839.5,2.60450579]
[1754583261589,5.54193716,3839.6,3839.4,2.60456392]
[1754583261791,1.02783716,3839.5,3839.4,2.60456392]
[1754583262099,1.48293716,3839.5,3839.1,0.1304]
[1754583262387,1.055,3839.4,3839.2,2.60465343]
[1754583262591,1.055,3839.4,3839.3,2.60464147]
[1754583262781,5.113,3839.4,3839.3,2.60464147]
[1754583263164,14.5,3840.0,3839.8,2.6042452]
[1754583263364,4.057,3839.9,3839.8,2.6042452]
[1754583263707,4.057,3839.9,3839.8,2.6043023]
[1754583264304,4.057,3839.9,3839.6,2.60443796]
[1754583264599,4.057,3839.9,3839.6,2.60442473]
[1754583264764,0.9246,3839.8,3839.6,2.60442473]
[1754583265297,4.1874,3839.9,3839.5,2.60450579]
[1754583265597,4.6569,3839.9,3839.7,2.60432341]
[1754583265892,4.6569,3839.9,3839.7,2.60431642]
[1754583266457,4.6569,3839.9,3839.4,0.1304]
[1754583266661,5.112,3839.9,3839.6,2.60443726]
[1754583267092,1.4840352,3839.8,3839.5,2.60450092]
[1754583267279,1.4840352,3839.8,3839.6,2.60443578]
[1754583267482,1.4840352,3839.8,3839.5,2.60450518]
[1754583267680,0.9246,3839.7,3839.4,0.1304]
[1754583267886,4.057,3839.6,3839.5,2.60444789]
[1754583268287,4.61683614,3839.6,3839.5,2.60444789]
[1754583268795,5.06803614,3839.6,3839.4,2.60456986]
[1754583269000,4.5082,3839.6,3839.4,2.60456986]
[1754583269499,0.55984916,3839.5,3839.4,2.60456986]
[1754583269676,0.55,3839.4,3838.7,4.27]
[1754583269877,5.55548171,3839.3,3839.0,2.60484331]
[1754583270077,0.55984916,3839.2,3839.0,2.60484331]
[1754583270398,4.057,3839.1,3839.0,2.60484331]
[1754583271064,4.61743677,3839.1,3839.0,2.60484331]
[1754583271379,4.057,3839.1,3839.0,2.60484331]
[1754583271577,4.61743677,3839.1,3839.0,2.60484331]
[1754583273496,4.61743677,3839.1,3838.8,2.60492176]
[1754583273711,3.43281185,3839.0,3838.6,0.1304]
[1754583273864,4.61643677,3838.9,3838.6,2.73550802]
[1754583274070,1.44323677,3838.8,3838.6,2.73550802]
[1754583274266,4.61643677,3838.7,3838.6,2.60510802]
[1754583275485,4.61643677,3838.7,3838.6,3.55750802]
[1754583275702,4.61643677,3838.7,3838.6,4.61263272]
[1754583277772,4.61643677,3838.7,3838.6,3.55750802]
[1754583278178,4.056,3838.7,3838.6,3.68790802]
[1754583278380,4.056,3838.7,3838.6,3.23500802]
[1754583278578,4.61643677,3838.7,3838.6,2.73550802]
[1754583278998,4.61643677,3838.7,3838.6,0.1304]
[1754583279198,5.49923677,3838.7,3838.6,2.60611644]
[1754583279795,5.06763677,3838.7,3838.6,2.60611644]
[1754583280698,4.61643677,3838.7,3838.6,2.60611644]
[1754583280894,4.61643677,3838.7,3838.6,3.10561644]
[1754583281203,4.61643677,3838.7,3838.6,2.60611644]
[1754583282907,9.23692043,3838.7,3838.6,0.001]
[1754583283110,9.21724903,3838.7,3838.6,0.001]
[1754583283408,12.21724903,3838.7,3838.6,0.001]
[1754583283642,3.15532006,3838.3,3838.2,0.001]
[1754583283815,7.77175683,3838.3,3838.2,0.001]
[1754583284004,8.78495683,3838.3,3838.2,0.001]
[1754583284303,23.28495683,3838.3,3838.2,0.001]
[1754583289345,23.28458316,3838.3,3838.2,0.001]
[1754583289547,23.61574981,3838.3,3838.2,0.001]
[1754583292750,22.73294981,3838.3,3838.2,0.001]
[1754583292922,23.18414981,3838.3,3838.2,0.001]
[1754583293536,20.57882975,3838.3,3838.2,0.001]
[1754583293709,19.2464631,3838.3,3838.2,0.001]
[1754583294527,19.7964631,3838.3,3838.2,0.001]
[1754583294957,20.6792631,3838.3,3838.2,0.001]
[1754583295865,23.28458316,3838.3,3838.2,0.001]
[1754583296237,19.7964631,3838.3,3838.2,0.001]
[1754583297035,19.1160631,3838.3,3838.2,0.9534]
[1754583297446,19.11580252,3838.3,3838.2,3.55878794]
[1754583297745,18.556,3838.3,3838.2,0.9534]
[1754583298460,19.115965,3838.3,3838.2,0.9534]
[1754583298977,18.556,3838.3,3838.2,0.9534]
[1754583299271,4.056,3838.3,3838.2,3.55878794]
[1754583300236,4.056,3838.3,3838.2,0.5005]
[1754583302241,4.056,3838.3,3838.2,3.10588794]
[1754583302459,4.056,3838.3,3838.2,0.9478]
[1754583302860,4.056,3838.3,3838.2,3.55318794]